[Event "Early-Titled-Tuesday-Blitz-March-26-2024"]
[Site "Chess.com"]
[Date "2024.03.26"]
[Round "9"]
[White "deribas12345"]
[Black "Brahianzevich"]
[Result "1-0"]
[WhiteElo "2623"]
[BlackElo "2461"]
[TimeControl "180+1"]
[EndTime "9:43:33 PDT"]
[Termination "deribas12345 won on time"]

1. d4 {[%clk 0:02:44.4]} 1... d5 {[%clk 0:02:58]} 2. c4 {[%clk 0:02:43.9]} 2...
e6 {[%clk 0:02:57.8]} 3. Nc3 {[%clk 0:02:43.8]} 3... Bb4 {[%clk 0:02:56.6]} 4.
a3 {[%clk 0:02:43.4]} 4... Bxc3+ {[%clk 0:02:55.8]} 5. bxc3 {[%clk 0:02:44.3]}
5... Nf6 {[%clk 0:02:54.1]} 6. f3 {[%clk 0:02:44.4]} 6... O-O {[%clk 0:02:54]}
7. e3 {[%clk 0:02:44.6]} 7... c5 {[%clk 0:02:48.3]} 8. Bd3 {[%clk 0:02:44.3]}
8... b6 {[%clk 0:02:40.9]} 9. cxd5 {[%clk 0:02:44]} 9... exd5 {[%clk 0:02:40.7]}
10. Ne2 {[%clk 0:02:43.7]} 10... Re8 {[%clk 0:02:39.3]} 11. O-O {[%clk
0:02:43.3]} 11... Ba6 {[%clk 0:02:11.2]} 12. Bxa6 {[%clk 0:02:42.8]} 12... Nxa6
{[%clk 0:02:12.1]} 13. g4 {[%clk 0:02:42.9]} 13... h6 {[%clk 0:02:01.6]} 14. Ra2
{[%clk 0:02:41.4]} 14... Qd7 {[%clk 0:01:41.8]} 15. Ng3 {[%clk 0:02:39.9]} 15...
Nc7 {[%clk 0:01:28.3]} 16. Nf5 {[%clk 0:02:37.9]} 16... Nb5 {[%clk 0:01:22.5]}
17. Bd2 {[%clk 0:02:27.1]} 17... Nd6 {[%clk 0:01:22.3]} 18. Nxd6 {[%clk
0:02:06]} 18... Qxd6 {[%clk 0:01:23.2]} 19. Bc1 {[%clk 0:01:58.5]} 19... Rac8
{[%clk 0:01:16.5]} 20. Qa4 {[%clk 0:01:48.4]} 20... Re7 {[%clk 0:00:57.5]} 21.
Bd2 {[%clk 0:01:47.4]} 21... cxd4 {[%clk 0:00:29.4]} 22. cxd4 {[%clk 0:01:44.1]}
22... Rc4 {[%clk 0:00:26.8]} 23. Qa6 {[%clk 0:01:40.9]} 23... Qe6 {[%clk
0:00:24.9]} 24. Kh1 {[%clk 0:01:25]} 24... g5 {[%clk 0:00:20.9]} 25. Qb5 {[%clk
0:01:18.4]} 25... Kg7 {[%clk 0:00:20.4]} 26. a4 {[%clk 0:01:09.5]} 26... Rec7
{[%clk 0:00:19.4]} 27. a5 {[%clk 0:01:08.1]} 27... Nxg4 {[%clk 0:00:18.8]} 28.
axb6 {[%clk 0:01:01.2]} 28... axb6 {[%clk 0:00:16.1]} 29. e4 {[%clk 0:00:48.5]}
29... Nf6 {[%clk 0:00:12.1]} 30. e5 {[%clk 0:00:43.9]} 30... Nh5 {[%clk
0:00:10.3]} 31. Bb4 {[%clk 0:00:31.7]} 31... Rc2 {[%clk 0:00:10.1]} 32. Rxc2
{[%clk 0:00:23.9]} 32... Rxc2 {[%clk 0:00:09.7]} 33. Qd3 {[%clk 0:00:20.9]}
33... Ng3+ {[%clk 0:00:06.2]} 34. Kg1 {[%clk 0:00:18.9]} 34... Rb2 {[%clk
0:00:04.6]} 35. Bd2 {[%clk 0:00:13.5]} 35... Nf5 {[%clk 0:00:02]} 36. Qc3 {[%clk
0:00:08.6]} 36... Ra2 {[%clk 0:00:01.8]} 37. f4 {[%clk 0:00:08.5]} 37... Ra4
{[%clk 0:00:02.1]} 38. fxg5 {[%clk 0:00:08.2]} 38... hxg5 {[%clk 0:00:03]} 39.
Bxg5 {[%clk 0:00:08]} 39... Rxd4 {[%clk 0:00:03.6]} 40. Bf6+ {[%clk 0:00:08.3]}
40... Kh7 {[%clk 0:00:02.7]} 41. Qh3+ {[%clk 0:00:08.4]} 41... Kg6 {[%clk
0:00:02.3]} 42. Kh1 {[%clk 0:00:07.4]} 42... Re4 {[%clk 0:00:01.4]} 43. Rg1+
{[%clk 0:00:07.7]} 1-0

[Event "Early-Titled-Tuesday-Blitz-March-26-2024"]
[Site "Chess.com"]
[Date "2024.03.26"]
[Round "9"]
[White "AdvanceGuard4"]
[Black "RebecaJimnz"]
[Result "1-0"]
[WhiteElo "2626"]
[BlackElo "2238"]
[TimeControl "180+1"]
[EndTime "9:43:33 PDT"]
[Termination "AdvanceGuard4 won by resignation"]

1. d4 {[%clk 0:02:54.6]} 1... d5 {[%clk 0:02:59.8]} 2. Bf4 {[%clk 0:02:52.3]}
2... Nf6 {[%clk 0:02:59.4]} 3. e3 {[%clk 0:02:50.6]} 3... e6 {[%clk 0:02:59.9]}
4. Nf3 {[%clk 0:02:47.9]} 4... Bd6 {[%clk 0:03:00.5]} 5. Bg3 {[%clk 0:02:45.9]}
5... c5 {[%clk 0:02:59]} 6. c3 {[%clk 0:02:45.6]} 6... Qc7 {[%clk 0:02:57.1]} 7.
Nbd2 {[%clk 0:02:01.5]} 7... Nbd7 {[%clk 0:02:57.3]} 8. Bd3 {[%clk 0:02:00.4]}
8... O-O {[%clk 0:02:56]} 9. O-O {[%clk 0:02:00.1]} 9... Bxg3 {[%clk 0:02:45.7]}
10. hxg3 {[%clk 0:01:59.8]} 10... e5 {[%clk 0:02:46.3]} 11. dxe5 {[%clk
0:01:58.2]} 11... Nxe5 {[%clk 0:02:47.2]} 12. Be2 {[%clk 0:01:52.3]} 12... b6
{[%clk 0:02:14.2]} 13. a4 {[%clk 0:01:48.6]} 13... Bf5 {[%clk 0:02:08.9]} 14.
Nxe5 {[%clk 0:01:47.4]} 14... Qxe5 {[%clk 0:02:08.3]} 15. Nf3 {[%clk 0:01:48.3]}
15... Qe7 {[%clk 0:02:06.7]} 16. a5 {[%clk 0:01:48]} 16... h6 {[%clk 0:01:55.9]}
17. axb6 {[%clk 0:01:44.7]} 17... axb6 {[%clk 0:01:56.8]} 18. Qb3 {[%clk
0:01:44]} 18... Qc7 {[%clk 0:01:36.5]} 19. Rfd1 {[%clk 0:01:39]} 19... Be6
{[%clk 0:01:36.4]} 20. Qc2 {[%clk 0:01:36.8]} 20... Ra7 {[%clk 0:01:24.4]} 21.
Rdc1 {[%clk 0:01:16.1]} 21... Rfa8 {[%clk 0:01:23]} 22. Qd1 {[%clk 0:01:16.1]}
22... Ra5 {[%clk 0:01:03.2]} 23. Rxa5 {[%clk 0:01:12.2]} 23... Rxa5 {[%clk
0:01:04.1]} 24. Ra1 {[%clk 0:01:11.3]} 24... Qa7 {[%clk 0:01:04.8]} 25. Rxa5
{[%clk 0:01:11.8]} 25... Qxa5 {[%clk 0:01:05.5]} 26. Qc2 {[%clk 0:01:02.5]}
26... Qa1+ {[%clk 0:01:01.5]} 27. Bf1 {[%clk 0:00:59.6]} 27... Ne4 {[%clk
0:00:56.7]} 28. c4 {[%clk 0:00:53.3]} 28... Nf6 {[%clk 0:00:40.7]} 29. cxd5
{[%clk 0:00:46.3]} 29... Bxd5 {[%clk 0:00:41.6]} 30. Nd2 {[%clk 0:00:44]} 30...
Bb7 {[%clk 0:00:29.6]} 31. f3 {[%clk 0:00:40]} 31... Qe1 {[%clk 0:00:28.2]} 32.
Nc4 {[%clk 0:00:31.4]} 32... Qxg3 {[%clk 0:00:24.2]} 33. Qf5 {[%clk 0:00:28.4]}
33... Nd5 {[%clk 0:00:11.8]} 34. Qd3 {[%clk 0:00:13.1]} 34... b5 {[%clk
0:00:11.5]} 35. Na5 {[%clk 0:00:12.3]} 35... Nb4 {[%clk 0:00:10.5]} 36. Qd8+
{[%clk 0:00:11.1]} 36... Kh7 {[%clk 0:00:10]} 37. Nxb7 {[%clk 0:00:11.8]} 37...
c4 {[%clk 0:00:07.2]} 38. Qe7 {[%clk 0:00:10.9]} 38... Nc2 {[%clk 0:00:06.4]}
39. Qe4+ {[%clk 0:00:08.7]} 39... Qg6 {[%clk 0:00:05.2]} 40. Qxg6+ {[%clk
0:00:08]} 40... Kxg6 {[%clk 0:00:06]} 41. Nd6 {[%clk 0:00:08.5]} 41... Nxe3
{[%clk 0:00:06.2]} 42. Nxb5 {[%clk 0:00:08.2]} 42... Nd1 {[%clk 0:00:05.4]} 43.
Nd6 {[%clk 0:00:05]} 43... Nxb2 {[%clk 0:00:05.6]} 44. Nxc4 {[%clk 0:00:05.9]}
44... Nd3 {[%clk 0:00:04.3]} 45. Bxd3+ {[%clk 0:00:05.6]} 1-0

[Event "Early-Titled-Tuesday-Blitz-March-26-2024"]
[Site "Chess.com"]
[Date "2024.03.26"]
[Round "9"]
[White "Flaccidmoves"]
[Black "Harry_Rakkel"]
[Result "0-1"]
[WhiteElo "2454"]
[BlackElo "2711"]
[TimeControl "180+1"]
[EndTime "9:43:34 PDT"]
[Termination "Harry_Rakkel won on time"]

1. Nf3 {[%clk 0:03:00.9]} 1... Nf6 {[%clk 0:02:59]} 2. e3 {[%clk 0:03:00]} 2...
g6 {[%clk 0:02:57.7]} 3. c4 {[%clk 0:02:58.8]} 3... Bg7 {[%clk 0:02:57.8]} 4. d4
{[%clk 0:02:53.9]} 4... O-O {[%clk 0:02:57.3]} 5. Be2 {[%clk 0:02:54.2]} 5... c5
{[%clk 0:02:57.2]} 6. O-O {[%clk 0:02:54.8]} 6... cxd4 {[%clk 0:02:56.4]} 7.
Nxd4 {[%clk 0:02:53.4]} 7... Nc6 {[%clk 0:02:55.8]} 8. Nc3 {[%clk 0:02:52.6]}
8... b6 {[%clk 0:02:54.3]} 9. Nxc6 {[%clk 0:02:30.4]} 9... dxc6 {[%clk
0:02:53.9]} 10. Bf3 {[%clk 0:02:19.2]} 10... Bb7 {[%clk 0:02:53]} 11. Qc2 {[%clk
0:02:15.3]} 11... Nd7 {[%clk 0:02:48.7]} 12. b3 {[%clk 0:02:09.8]} 12... Qc7
{[%clk 0:02:45.6]} 13. Bb2 {[%clk 0:02:09.8]} 13... Rfd8 {[%clk 0:02:39]} 14.
Rad1 {[%clk 0:02:08.1]} 14... Ne5 {[%clk 0:02:34.7]} 15. Be2 {[%clk 0:02:07.4]}
15... e6 {[%clk 0:02:34.5]} 16. f4 {[%clk 0:01:55.9]} 16... Nd7 {[%clk
0:02:33.5]} 17. Ne4 {[%clk 0:01:55.2]} 17... c5 {[%clk 0:02:13.8]} 18. Bf3
{[%clk 0:01:54.1]} 18... Bxe4 {[%clk 0:02:10.9]} 19. Bxe4 {[%clk 0:01:48.1]}
19... Rab8 {[%clk 0:02:09.1]} 20. Bxg7 {[%clk 0:01:39]} 20... Kxg7 {[%clk
0:02:08.4]} 21. Qc3+ {[%clk 0:01:39.1]} 21... Kg8 {[%clk 0:02:00.6]} 22. Bf3
{[%clk 0:01:14.4]} 22... Nf8 {[%clk 0:01:53.6]} 23. Qf6 {[%clk 0:01:10.9]} 23...
Rxd1 {[%clk 0:01:46.9]} 24. Rxd1 {[%clk 0:01:10.5]} 24... b5 {[%clk 0:01:47.5]}
25. cxb5 {[%clk 0:01:04.4]} 25... Rxb5 {[%clk 0:01:46.8]} 26. Rd8 {[%clk
0:01:02.1]} 26... Rb8 {[%clk 0:01:43.9]} 27. Rxb8 {[%clk 0:00:56.7]} 27... Qxb8
{[%clk 0:01:43.9]} 28. Qc3 {[%clk 0:00:55]} 28... Qd6 {[%clk 0:01:41.7]} 29. h3
{[%clk 0:00:51]} 29... Nd7 {[%clk 0:01:37.4]} 30. Kh2 {[%clk 0:00:50.9]} 30...
e5 {[%clk 0:01:34.9]} 31. Qc4 {[%clk 0:00:40.8]} 31... Nf6 {[%clk 0:01:27.7]}
32. fxe5 {[%clk 0:00:33.3]} 32... Qxe5+ {[%clk 0:01:26.9]} 33. Qf4 {[%clk
0:00:34]} 33... Qe7 {[%clk 0:01:25.6]} 34. Be2 {[%clk 0:00:23.4]} 34... Nd7
{[%clk 0:01:21.2]} 35. Bc4 {[%clk 0:00:21.6]} 35... Ne5 {[%clk 0:01:20.7]} 36.
Bd5 {[%clk 0:00:21.2]} 36... h5 {[%clk 0:01:18.4]} 37. Qe4 {[%clk 0:00:13.7]}
37... Qd6 {[%clk 0:01:12.9]} 38. Kg1 {[%clk 0:00:10.6]} 38... Kg7 {[%clk
0:01:11.9]} 39. Kh1 {[%clk 0:00:08.5]} 39... a5 {[%clk 0:01:10.8]} 40. Bc4
{[%clk 0:00:07.7]} 40... Qf6 {[%clk 0:00:48.1]} 41. Kh2 {[%clk 0:00:07]} 41...
h4 {[%clk 0:00:46.9]} 42. Qf4 {[%clk 0:00:07.1]} 42... Qd6 {[%clk 0:00:33.3]}
43. Kh1 {[%clk 0:00:05.8]} 43... Qe7 {[%clk 0:00:31.9]} 44. Kh2 {[%clk
0:00:05.3]} 44... g5 {[%clk 0:00:31.3]} 45. Qf5 {[%clk 0:00:04.8]} 45... f6
{[%clk 0:00:26.1]} 46. Bd5 {[%clk 0:00:04.4]} 46... Qd6 {[%clk 0:00:25.4]} 47.
Qe4 {[%clk 0:00:02]} 47... Ng4+ {[%clk 0:00:23]} 48. Kg1 {[%clk 0:00:02]} 48...
Qh2+ {[%clk 0:00:22.4]} 49. Kf1 {[%clk 0:00:02.4]} 49... Qh1+ {[%clk 0:00:20.9]}
50. Ke2 {[%clk 0:00:02.9]} 50... Ne5 {[%clk 0:00:20.7]} 51. Qf5 {[%clk
0:00:02.6]} 51... Qa1 {[%clk 0:00:18.2]} 0-1

[Event "Early-Titled-Tuesday-Blitz-March-26-2024"]
[Site "Chess.com"]
[Date "2024.03.26"]
[Round "9"]
[White "Savagelittlemole"]
[Black "Meri-Arabidze"]
[Result "1/2-1/2"]
[WhiteElo "2506"]
[BlackElo "2673"]
[TimeControl "180+1"]
[EndTime "9:43:38 PDT"]
[Termination "Game drawn by repetition"]

1. e4 {[%clk 0:03:00.9]} 1... e5 {[%clk 0:02:56.1]} 2. Nf3 {[%clk 0:03:00.7]}
2... Nc6 {[%clk 0:02:56.7]} 3. Bc4 {[%clk 0:03:01]} 3... Nf6 {[%clk 0:02:53.8]}
4. d3 {[%clk 0:03:01]} 4... h6 {[%clk 0:02:52]} 5. a4 {[%clk 0:02:59.6]} 5... d6
{[%clk 0:02:51.9]} 6. Nc3 {[%clk 0:02:58.6]} 6... Be7 {[%clk 0:02:51.5]} 7. h3
{[%clk 0:02:57.7]} 7... a5 {[%clk 0:02:50.3]} 8. Be3 {[%clk 0:02:55.5]} 8... Be6
{[%clk 0:02:46.1]} 9. O-O {[%clk 0:02:49.1]} 9... O-O {[%clk 0:02:46]} 10. Bxe6
{[%clk 0:02:36.6]} 10... fxe6 {[%clk 0:02:46.9]} 11. d4 {[%clk 0:02:36.5]} 11...
exd4 {[%clk 0:02:45]} 12. Nxd4 {[%clk 0:02:35.9]} 12... Nxd4 {[%clk 0:02:41.7]}
13. Qxd4 {[%clk 0:02:32.8]} 13... e5 {[%clk 0:02:40.8]} 14. Qc4+ {[%clk
0:02:31.4]} 14... Kh8 {[%clk 0:02:40.8]} 15. Nd5 {[%clk 0:02:26.9]} 15... Nxd5
{[%clk 0:02:34.6]} 16. Qxd5 {[%clk 0:02:26.2]} 16... b6 {[%clk 0:02:31.5]} 17.
c3 {[%clk 0:02:21.7]} 17... Bg5 {[%clk 0:02:30.4]} 18. Rae1 {[%clk 0:02:16.3]}
18... Bf4 {[%clk 0:02:24.3]} 19. Bxf4 {[%clk 0:02:09.6]} 19... Rxf4 {[%clk
0:02:24.1]} 20. Re3 {[%clk 0:02:08.5]} 20... Qf8 {[%clk 0:02:14.5]} 21. Rg3
{[%clk 0:02:02.9]} 21... Re8 {[%clk 0:02:11.8]} 22. Rg6 {[%clk 0:01:46]} 22...
Kh7 {[%clk 0:02:03.6]} 23. Rg3 {[%clk 0:01:20.3]} 23... Re7 {[%clk 0:02:03.2]}
24. Rg4 {[%clk 0:01:05.6]} 24... Rxg4 {[%clk 0:01:59.2]} 25. hxg4 {[%clk
0:01:06.5]} 25... Qe8 {[%clk 0:01:58.9]} 26. b3 {[%clk 0:00:59.7]} 26... Qg6
{[%clk 0:01:45]} 27. f3 {[%clk 0:00:58.6]} 27... Qg5 {[%clk 0:01:44.8]} 28. Qd3
{[%clk 0:00:56.1]} 28... Rf7 {[%clk 0:01:34.5]} 29. Rd1 {[%clk 0:00:52]} 29...
g6 {[%clk 0:01:19.7]} 30. Qd2 {[%clk 0:00:51.8]} 30... Qxd2 {[%clk 0:01:10.5]}
31. Rxd2 {[%clk 0:00:51.6]} 31... Rf8 {[%clk 0:01:11.3]} 32. b4 {[%clk
0:00:48.8]} 32... Ra8 {[%clk 0:01:10.3]} 33. Ra2 {[%clk 0:00:44.9]} 33... h5
{[%clk 0:01:10.7]} 34. gxh5 {[%clk 0:00:44.4]} 34... gxh5 {[%clk 0:01:11.6]} 35.
Kf2 {[%clk 0:00:44.7]} 35... Kg6 {[%clk 0:01:11.5]} 36. Ke3 {[%clk 0:00:45]}
36... h4 {[%clk 0:01:08]} 37. Kd3 {[%clk 0:00:44.5]} 37... Kg5 {[%clk
0:01:08.2]} 38. Kc4 {[%clk 0:00:43.1]} 38... c6 {[%clk 0:00:59.2]} 39. b5 {[%clk
0:00:38.9]} 39... Rc8 {[%clk 0:00:50.5]} 40. bxc6 {[%clk 0:00:38.2]} 40... Rxc6+
{[%clk 0:00:50.5]} 41. Kb5 {[%clk 0:00:26.8]} 41... Rxc3 {[%clk 0:00:50]} 42.
Kxb6 {[%clk 0:00:27.2]} 42... Rc5 {[%clk 0:00:47.2]} 43. Rd2 {[%clk 0:00:27.2]}
43... Kh5 {[%clk 0:00:17.2]} 44. Re2 {[%clk 0:00:12]} 44... Kg5 {[%clk
0:00:15.9]} 45. Rf2 {[%clk 0:00:12.2]} 45... Kf4 {[%clk 0:00:15.4]} 46. Rd2
{[%clk 0:00:12.8]} 46... Kg5 {[%clk 0:00:08]} 47. Ka6 {[%clk 0:00:06.4]} 47...
Kh5 {[%clk 0:00:06.9]} 48. Kb6 {[%clk 0:00:06.7]} 48... Kg5 {[%clk 0:00:07.2]}
49. Ka6 {[%clk 0:00:07.2]} 49... Kh5 {[%clk 0:00:07.5]} 50. Kb6 {[%clk
0:00:07.9]} 50... Kg5 {[%clk 0:00:08]} 1/2-1/2

[Event "Early-Titled-Tuesday-Blitz-March-26-2024"]
[Site "Chess.com"]
[Date "2024.03.26"]
[Round "9"]
[White "EternalNight8"]
[Black "MatyChess1"]
[Result "0-1"]
[WhiteElo "2477"]
[BlackElo "2646"]
[TimeControl "180+1"]
[EndTime "9:43:40 PDT"]
[Termination "MatyChess1 won by resignation"]

1. d4 {[%clk 0:03:00.9]} 1... Nf6 {[%clk 0:02:58.4]} 2. Bg5 {[%clk 0:03:00.8]}
2... g6 {[%clk 0:02:57.8]} 3. Bxf6 {[%clk 0:02:59.4]} 3... exf6 {[%clk
0:02:58.7]} 4. e3 {[%clk 0:02:59]} 4... d5 {[%clk 0:02:58.2]} 5. c4 {[%clk
0:02:59.2]} 5... dxc4 {[%clk 0:02:51.3]} 6. Bxc4 {[%clk 0:03:00.1]} 6... Bd6
{[%clk 0:02:47.2]} 7. Nc3 {[%clk 0:02:59.7]} 7... O-O {[%clk 0:02:46.9]} 8. Nf3
{[%clk 0:02:53.8]} 8... c6 {[%clk 0:02:39.8]} 9. O-O {[%clk 0:02:48.3]} 9... f5
{[%clk 0:02:39.1]} 10. a3 {[%clk 0:02:35.1]} 10... a5 {[%clk 0:02:35.3]} 11. Ba2
{[%clk 0:02:17.9]} 11... Nd7 {[%clk 0:02:32.3]} 12. Rc1 {[%clk 0:02:06]} 12...
Nf6 {[%clk 0:02:27.1]} 13. Qc2 {[%clk 0:02:03.4]} 13... Qe7 {[%clk 0:02:10.5]}
14. Na4 {[%clk 0:01:49.7]} 14... Ne4 {[%clk 0:02:01.6]} 15. Nb6 {[%clk 0:01:48]}
15... Rb8 {[%clk 0:02:01.8]} 16. Nxc8 {[%clk 0:01:46.3]} 16... Rfxc8 {[%clk
0:01:57.3]} 17. h4 {[%clk 0:01:27]} 17... Kg7 {[%clk 0:01:54.1]} 18. Rfd1 {[%clk
0:01:21.2]} 18... Re8 {[%clk 0:01:50.8]} 19. Qc4 {[%clk 0:01:09.8]} 19... Qf6
{[%clk 0:01:38.4]} 20. Re1 {[%clk 0:00:50.7]} 20... Re7 {[%clk 0:01:37]} 21. b4
{[%clk 0:00:47.5]} 21... axb4 {[%clk 0:01:36.8]} 22. axb4 {[%clk 0:00:48.4]}
22... h6 {[%clk 0:01:27.7]} 23. b5 {[%clk 0:00:41.1]} 23... cxb5 {[%clk
0:01:24]} 24. Qxb5 {[%clk 0:00:42]} 24... g5 {[%clk 0:01:20.3]} 25. h5 {[%clk
0:00:22]} 25... g4 {[%clk 0:01:17.3]} 26. Ne5 {[%clk 0:00:22.1]} 26... Bxe5
{[%clk 0:01:09.1]} 27. dxe5 {[%clk 0:00:23]} 27... Rxe5 {[%clk 0:01:08.2]} 28.
Qd7 {[%clk 0:00:20.3]} 28... Re7 {[%clk 0:01:03.1]} 29. Qd5 {[%clk 0:00:17.6]}
29... Rbe8 {[%clk 0:00:42]} 30. Re2 {[%clk 0:00:16.2]} 30... Nc3 {[%clk
0:00:37.2]} 31. Rxc3 {[%clk 0:00:13.7]} 31... Qxc3 {[%clk 0:00:38.1]} 32. Rd2
{[%clk 0:00:13.8]} 32... Qa1+ {[%clk 0:00:34]} 33. Kh2 {[%clk 0:00:13.6]} 33...
Qe5+ {[%clk 0:00:34.4]} 34. Qxe5+ {[%clk 0:00:13.5]} 34... Rxe5 {[%clk
0:00:35.3]} 35. Rd7 {[%clk 0:00:13.3]} 35... R8e7 {[%clk 0:00:36]} 36. Rd8
{[%clk 0:00:13.1]} 36... b5 {[%clk 0:00:30.1]} 37. Rb8 {[%clk 0:00:13.1]} 37...
Kf6 {[%clk 0:00:29.9]} 38. Kg3 {[%clk 0:00:13]} 38... Kg5 {[%clk 0:00:27.2]} 39.
Rg8+ {[%clk 0:00:06.7]} 39... Kxh5 {[%clk 0:00:25.2]} 40. Kf4 {[%clk 0:00:06.8]}
40... b4 {[%clk 0:00:08.7]} 41. Bxf7+ {[%clk 0:00:05]} 41... Rxf7 {[%clk
0:00:07.4]} 42. Kxe5 {[%clk 0:00:05.9]} 42... Rb7 {[%clk 0:00:06.2]} 43. Rd8
{[%clk 0:00:03.5]} 43... b3 {[%clk 0:00:05.2]} 44. Rd1 {[%clk 0:00:04]} 44... b2
{[%clk 0:00:05.5]} 45. Rb1 {[%clk 0:00:04.1]} 45... Kg5 {[%clk 0:00:05.7]} 46.
Kd4 {[%clk 0:00:03.3]} 46... h5 {[%clk 0:00:06.4]} 47. Kc3 {[%clk 0:00:03.3]}
47... h4 {[%clk 0:00:07.1]} 48. Rxb2 {[%clk 0:00:03.4]} 48... Rxb2 {[%clk
0:00:07.7]} 49. Kxb2 {[%clk 0:00:04.3]} 49... h3 {[%clk 0:00:08.3]} 50. gxh3
{[%clk 0:00:04.9]} 50... gxh3 {[%clk 0:00:09.2]} 0-1

[Event "Early-Titled-Tuesday-Blitz-March-26-2024"]
[Site "Chess.com"]
[Date "2024.03.26"]
[Round "9"]
[White "RandomNoob04"]
[Black "shimastream"]
[Result "0-1"]
[WhiteElo "2674"]
[BlackElo "3019"]
[TimeControl "180+1"]
[EndTime "9:43:41 PDT"]
[Termination "shimastream won by resignation"]

1. e4 {[%clk 0:03:00.9]} 1... c5 {[%clk 0:02:53.6]} 2. d4 {[%clk 0:03:01.3]}
2... cxd4 {[%clk 0:02:51.7]} 3. c3 {[%clk 0:03:02]} 3... Nf6 {[%clk 0:02:48.9]}
4. e5 {[%clk 0:03:02.2]} 4... Nd5 {[%clk 0:02:49.3]} 5. Nf3 {[%clk 0:03:03.1]}
5... e6 {[%clk 0:02:49]} 6. cxd4 {[%clk 0:03:03.2]} 6... b6 {[%clk 0:02:48.9]}
7. Nc3 {[%clk 0:03:03.2]} 7... Nxc3 {[%clk 0:02:48.2]} 8. bxc3 {[%clk
0:03:04.1]} 8... Qc7 {[%clk 0:02:48.8]} 9. Bb5 {[%clk 0:03:04.1]} 9... Bb7
{[%clk 0:02:40.2]} 10. O-O {[%clk 0:03:02.5]} 10... Be7 {[%clk 0:02:39.9]} 11.
Bf4 {[%clk 0:02:34.4]} 11... O-O {[%clk 0:02:39.1]} 12. Rc1 {[%clk 0:02:34.6]}
12... d6 {[%clk 0:02:35.1]} 13. Re1 {[%clk 0:02:19.6]} 13... Nd7 {[%clk
0:02:32.7]} 14. Qd3 {[%clk 0:02:05.9]} 14... dxe5 {[%clk 0:02:11.2]} 15. Nxe5
{[%clk 0:02:03.3]} 15... Nxe5 {[%clk 0:02:11.1]} 16. Bxe5 {[%clk 0:02:02.9]}
16... Bd6 {[%clk 0:02:10.9]} 17. Qg3 {[%clk 0:01:55.1]} 17... Bxe5 {[%clk
0:02:08.2]} 18. Rxe5 {[%clk 0:01:56]} 18... Rfd8 {[%clk 0:02:06.6]} 19. Bd3
{[%clk 0:01:52.7]} 19... Rac8 {[%clk 0:01:57]} 20. Qh4 {[%clk 0:01:21.5]} 20...
g6 {[%clk 0:01:54]} 21. h3 {[%clk 0:01:21]} 21... Bd5 {[%clk 0:01:42.7]} 22. Qh6
{[%clk 0:01:08.4]} 22... Bxa2 {[%clk 0:01:31.4]} 23. Rh5 {[%clk 0:00:48.5]}
23... f5 {[%clk 0:01:31]} 24. Rg5 {[%clk 0:00:49]} 24... Rxd4 {[%clk 0:01:21.6]}
25. cxd4 {[%clk 0:00:42.2]} 25... Qxc1+ {[%clk 0:01:21.3]} 26. Kh2 {[%clk
0:00:43.1]} 26... Qf4+ {[%clk 0:01:21.9]} 27. Kg1 {[%clk 0:00:37.6]} 27... Rc1+
{[%clk 0:00:04.5]} 28. Bf1 {[%clk 0:00:37.8]} 28... Rxf1+ {[%clk 0:00:05.1]} 29.
Kxf1 {[%clk 0:00:38.7]} 29... Qc1+ {[%clk 0:00:05.2]} 30. Ke2 {[%clk 0:00:39.3]}
30... Bc4+ {[%clk 0:00:05.8]} 31. Kf3 {[%clk 0:00:38.9]} 31... Qa3+ {[%clk
0:00:06.3]} 32. Kf4 {[%clk 0:00:37.8]} 32... Qd6+ {[%clk 0:00:06.6]} 33. Ke3
{[%clk 0:00:28.5]} 33... Qa3+ {[%clk 0:00:06]} 34. Kf4 {[%clk 0:00:28.6]} 34...
Qd6+ {[%clk 0:00:05.6]} 35. Ke3 {[%clk 0:00:29]} 35... f4+ {[%clk 0:00:05.9]}
36. Kf3 {[%clk 0:00:24.5]} 36... Qxd4 {[%clk 0:00:05.1]} 37. Qh4 {[%clk
0:00:06.4]} 37... Bd5+ {[%clk 0:00:04.7]} 38. Kg4 {[%clk 0:00:06.8]} 38... f3+
{[%clk 0:00:04.5]} 39. Kg3 {[%clk 0:00:06.1]} 39... Qxh4+ {[%clk 0:00:02]} 40.
Kxh4 {[%clk 0:00:07]} 40... fxg2 {[%clk 0:00:02.7]} 41. Rg3 {[%clk 0:00:04.1]}
41... a5 {[%clk 0:00:02.9]} 42. Kg4 {[%clk 0:00:04.4]} 42... a4 {[%clk
0:00:03.3]} 43. f3 {[%clk 0:00:05]} 43... a3 {[%clk 0:00:02.9]} 44. Rxg2 {[%clk
0:00:05.6]} 44... a2 {[%clk 0:00:03.5]} 45. Rg1 {[%clk 0:00:06.3]} 45... b5
{[%clk 0:00:04.1]} 46. Kf4 {[%clk 0:00:02.9]} 46... b4 {[%clk 0:00:04.6]} 47.
Ke3 {[%clk 0:00:03.1]} 47... b3 {[%clk 0:00:05.1]} 48. Kd2 {[%clk 0:00:03.7]}
48... b2 {[%clk 0:00:05.6]} 0-1